lending/lending_fUSD_20250719
["ID","MTS","AMOUNT","RATE_DAILY","PERIOD"]
[373269795,1752925917408,-534.76,0.00019945,2]
[373269796,1752925917417,-480.0,0.00019945,2]
[373269797,1752925917433,-585.37,0.00019945,2]
[373269798,1752925917445,-480.0,0.00019945,2]
[373269799,1752925917455,-389.05,0.00019945,2]
[373269800,1752925917466,-480.0,0.00019945,2]
[373269801,1752925917476,-480.0,0.00019945,2]
[373269802,1752925917485,-3423.93,0.00019945,2]
[373269803,1752925917495,-480.0,0.00019945,2]
[373269804,1752925917505,-480.0,0.00019945,2]
[373269805,1752925917516,-480.0,0.00019945,2]
[373269806,1752925917535,-480.0,0.00019945,2]
[373269807,1752925917545,-480.0,0.00019945,2]
[373269808,1752925917554,-480.0,0.00019945,2]
[373269809,1752925917564,-480.0,0.00019945,2]
[373269810,1752925917575,-480.0,0.00019945,2]
[373269811,1752925917585,-480.0,0.00019945,2]
[373269812,1752925917595,-579.58000977,0.00019945,2]
[373269813,1752925917604,-480.0,0.00019945,2]
[373269814,1752925917614,-483.36,0.00019945,2]
[373269815,1752925917624,-480.0,0.00019945,2]
[373269817,1752925917633,-534.08,0.00019945,2]
[373269818,1752925917644,-480.0,0.00019945,2]
[373269819,1752925917654,-480.0,0.00019945,2]
[373269820,1752925917664,-480.0,0.00019945,2]
[373269821,1752925917673,-151.0,0.00019945,2]
[373269822,1752925917683,-480.0,0.00019945,2]
[373269823,1752925917693,-610.36,0.00019945,2]
[373269824,1752925917703,-480.0,0.00019945,2]
[373269825,1752925917713,-289.105272,0.00019945,2]
[373269826,1752925917723,-480.0,0.00019945,2]
[373269827,1752925917733,-368.11876184,0.00019945,2]
[373269828,1752925917742,-356.679748,0.00019945,2]
[373269829,1752925917752,-706.76,0.00019945,2]
[373269830,1752925917762,-480.0,0.00019945,2]
[373269831,1752925917772,-308.18589437,0.00019945,2]
[373269832,1752925917782,-202.35,0.00019945,2]
[373269833,1752925917791,-1249.6,0.00019945,2]
[373269834,1752925917801,-480.0,0.00019945,2]
[373269835,1752925917811,-354.2746538,0.00019945,2]
[373269836,1752925917821,-151.0,0.00019945,2]
[373269837,1752925917831,-517.22,0.00019945,2]
[373269838,1752925917840,-545.98,0.00019945,2]
[373269839,1752925917850,-408.08,0.00019945,2]
[373269840,1752925917859,-525.96,0.00019945,2]
[373269841,1752925917869,-201.861132,0.00019945,2]
[373269842,1752925917879,-314.14,0.00019945,2]
[373269843,1752925917888,-480.0,0.00019945,2]
[373269844,1752925917898,-480.0,0.00019945,2]
[373269845,1752925917908,-480.0,0.00019945,2]
[373269846,1752925917918,-480.0,0.00019945,2]
[373269847,1752925917927,-333.01193591,0.00019945,2]
[373269848,1752925917938,-728.86,0.00019945,2]
[373269849,1752925917947,-1316.89,0.00019945,2]
[373269850,1752925917955,-480.0,0.00019945,2]
[373269851,1752925917965,-480.0,0.00019945,2]
[373269852,1752925917974,-480.0,0.00019945,2]
[373269853,1752925917983,-815.4,0.00019945,2]
[373269854,1752925917993,-480.0,0.00019945,2]
[373269855,1752925918002,-1101.71,0.00019945,2]
[373269856,1752925918011,-480.0,0.00019945,2]
[373269857,1752925918020,-480.0,0.00019945,2]
[373269858,1752925918029,-748.45,0.00019945,2]
[373269859,1752925918038,-1336.055073,0.00019945,2]
[373269860,1752925918048,-573.22,0.00019945,2]
[373269861,1752925918057,-1293.804523,0.00019945,2]
[373269862,1752925918067,-480.0,0.00019945,2]
[373269863,1752925918076,-151.0,0.00019945,2]
[373269864,1752925918085,-480.0,0.00019945,2]
[373269865,1752925918095,-333.6571515,0.00019945,2]
[373269866,1752925918104,-480.0,0.00019945,2]
[373269867,1752925918113,-1617.28,0.00019945,2]
[373269868,1752925918122,-745.78,0.00019945,2]
[373269869,1752925918132,-151.0,0.00019945,2]
[373269870,1752925918141,-690.32,0.00019945,2]
[373269871,1752925918150,-310.11837218,0.00019945,2]
[373269872,1752925918159,-1070.92,0.00019945,2]
[373269873,1752925918169,-550.96764626,0.00019945,2]
[373269874,1752925918179,-658.12,0.00019945,2]
[373269875,1752925918188,-230.8159202,0.00019945,2]
[373269876,1752925918198,-934.12,0.00019945,2]
[373269877,1752925918207,-480.0,0.00019945,2]
[373269878,1752925918218,-1174.42,0.00019945,2]
[373269879,1752925918227,-480.0,0.00019945,2]
[373269880,1752925918239,-1202.04,0.00019945,2]
[373269881,1752925918248,-480.0,0.00019945,2]
[373269882,1752925918258,-480.0,0.00019945,2]
[373269883,1752925918268,-815.86,0.00019945,2]
[373269884,1752925918278,-1628.87,0.00019945,2]
[373269885,1752925918287,-1494.63,0.00019945,2]
[373269886,1752925918297,-480.0,0.00019945,2]
[373269887,1752925918306,-830.69,0.00019945,2]
[373269888,1752925918316,-480.0,0.00019945,2]
[373269889,1752925918326,-480.0,0.00019945,2]
[373269890,1752925918335,-480.0,0.00019945,2]
[373269891,1752925918344,-480.0,0.00019945,2]
[373269892,1752925918354,-480.0,0.00019945,2]
[373269893,1752925918363,-543.78,0.00019945,2]
[373269894,1752925918372,-480.0,0.00019945,2]
[373269895,1752925918381,-2089.05,0.00019945,2]
[373269896,1752925918391,-1437.33,0.00019945,2]
[373269897,1752925918400,-657.72,0.00019945,2]
[373269898,1752925918410,-480.0,0.00019945,2]
[373269899,1752925918606,-537.05,0.00019945,2]
[373269900,1752925918615,-480.0,0.00019945,2]
[373269901,1752925918625,-480.0,0.00019945,2]
[373269902,1752925918634,-370.14196461,0.00019945,2]
[373269903,1752925918643,-429.5,0.00019945,2]
[373269904,1752925918653,-480.0,0.00019945,2]
[373269905,1752925918663,-635.8,0.00019945,2]
[373269906,1752925918672,-581.67,0.00019945,2]
[373269907,1752925918681,-516.44,0.00019945,2]
[373269908,1752925918690,-1539.584669,0.00019945,2]
[373269909,1752925918700,-480.0,0.00019945,2]
[373269910,1752925918709,-480.0,0.00019945,2]
[373269911,1752925918721,-2843.45,0.00019945,2]
[373269912,1752925918730,-480.0,0.00019945,2]
[373269913,1752925918740,-935.75,0.00019945,2]
[373269914,1752925918749,-480.0,0.00019945,2]
[373269915,1752925918759,-480.0,0.00019945,2]
[373269916,1752925918768,-553.19,0.00019945,2]
[373269917,1752925918777,-629.13,0.00019945,2]
[373269918,1752925918786,-789.27,0.00019945,2]
[373269919,1752925918796,-480.0,0.00019945,2]
[373269920,1752925918805,-489.13563817,0.00019945,2]
[373269921,1752925918815,-480.0,0.00019945,2]
[373269922,1752925918824,-534.81,0.00019945,2]
[373269923,1752925918834,-480.0,0.00019945,2]
[373269924,1752925918843,-480.0,0.00019945,2]
[373269925,1752925918853,-488.79,0.00019945,2]
[373269926,1752925918862,-937.31,0.00019945,2]
[373269927,1752925918871,-480.0,0.00019945,2]
[373269928,1752925918881,-620.0,0.00019945,2]
[373269929,1752925918891,-480.0,0.00019945,2]
[373269930,1752925918900,-2978.15,0.00019945,2]
[373269931,1752925918909,-480.0,0.00019945,2]
[373269932,1752925918918,-480.0,0.00019945,2]
[373269933,1752925918927,-480.0,0.00019945,2]
[373269934,1752925918937,-480.0,0.00019945,2]
[373269935,1752925918946,-588.55,0.00019945,2]
[373269936,1752925918955,-534.31,0.00019945,2]
[373269937,1752925918966,-480.0,0.00019945,2]
[373269938,1752925918975,-480.0,0.00019945,2]
[373269939,1752925918984,-480.0,0.00019945,2]
[373269940,1752925918994,-308.97,0.00019945,2]
[373269941,1752925919003,-874.31,0.00019945,2]
[373269942,1752925919013,-5707.74,0.00019945,2]
[373269943,1752925919023,-1001.03,0.00019945,2]
[373269944,1752925919032,-742.13,0.00019945,2]
[373269945,1752925919041,-434.12,0.00019945,2]
[373269946,1752925919051,-1089.17,0.00019945,2]
[373269947,1752925919061,-480.0,0.00019945,2]
[373269948,1752925919070,-480.0,0.00019945,2]
[373269949,1752925919080,-480.0,0.00019945,2]
[373269950,1752925919090,-480.0,0.00019945,2]
[373269951,1752925919100,-480.0,0.00019945,2]
[373269952,1752925919113,-827.74,0.00019945,2]
[373269953,1752925919123,-480.0,0.00019945,2]
[373269954,1752925919132,-985.41,0.00019945,2]
[373269955,1752925919141,-883.65,0.00019945,2]
[373269956,1752925919150,-630.85,0.00019945,2]
[373269957,1752925919159,-480.0,0.00019945,2]
[373269958,1752925919168,-480.0,0.00019945,2]
[373269959,1752925919177,-725.32,0.00019945,2]
[373269960,1752925919186,-594.58,0.00019945,2]
[373269961,1752925919195,-546.59,0.00019945,2]
[373269962,1752925919205,-480.0,0.00019945,2]
[373269963,1752925919214,-961.48,0.00019945,2]
[373269964,1752925919224,-480.0,0.00019945,2]
[373269965,1752925919234,-480.0,0.00019945,2]
[373269966,1752925919245,-480.0,0.00019945,2]
[373269967,1752925919255,-1312.32,0.00019945,2]
[373269968,1752925919264,-480.0,0.00019945,2]
[373269969,1752925919273,-481.15,0.00019945,2]
[373269970,1752925919284,-480.0,0.00019945,2]
[373269971,1752925919294,-3316.07,0.00019945,2]
[373269972,1752925919303,-480.0,0.00019945,2]
[373269973,1752925919313,-493.61,0.00019945,2]
[373269974,1752925919322,-547.64287614,0.00019945,2]
[373269975,1752925919332,-329.88563796,0.00019945,2]
[373269976,1752925919341,-480.0,0.00019945,2]
[373269977,1752925919351,-480.0,0.00019945,2]
[373269978,1752925919360,-480.0,0.00019945,2]
[373269979,1752925919369,-1168.4,0.00019945,2]
[373269980,1752925919378,-480.0,0.00019945,2]
[373269981,1752925919388,-480.0,0.00019945,2]
[373269982,1752925919397,-3075.77,0.00019945,2]
[373269983,1752925919407,-558.22,0.00019945,2]
[373269984,1752925919416,-480.0,0.00019945,2]
[373269985,1752925919426,-538.42,0.00019945,2]
[373269986,1752925919435,-480.0,0.00019945,2]
[373269987,1752925919445,-2213.01,0.00019945,2]
[373269988,1752925919454,-353.39234786,0.00019945,2]
[373269989,1752925919464,-480.0,0.00019945,2]
[373269990,1752925919474,-617.33,0.00019945,2]
[373269991,1752925919483,-480.0,0.00019945,2]
[373269992,1752925919492,-480.0,0.00019945,2]
[373269993,1752925919501,-480.0,0.00019945,2]
[373269994,1752925919511,-480.0,0.00019945,2]
[373269995,1752925919520,-480.0,0.00019945,2]
[373269996,1752925919529,-554.35507181,0.00019945,2]
[373269997,1752925919539,-1282.83,0.00019945,2]
[373269998,1752925919549,-480.0,0.00019945,2]
[373269999,1752925919558,-480.0,0.00019945,2]
[373270000,1752925919567,-480.0,0.00019945,2]
[373270001,1752925919577,-480.0,0.00019945,2]
[373270002,1752925919586,-480.0,0.00019945,2]
[373270003,1752925919596,-480.0,0.00019945,2]
[373270004,1752925919605,-643.18,0.00019945,2]
[373270005,1752925919615,-901.37,0.00019945,2]
[373270006,1752925919625,-480.0,0.00019945,2]
[373270007,1752925919634,-1874.62,0.00019945,2]
[373270008,1752925919644,-480.0,0.00019945,2]
[373270009,1752925919653,-480.0,0.00019945,2]
[373270010,1752925919663,-480.0,0.00019945,2]
[373270011,1752925919672,-2423.29,0.00019945,2]
[373270012,1752925919681,-480.0,0.00019945,2]
[373270013,1752925919691,-480.0,0.00019945,2]
[373270014,1752925919701,-480.0,0.00019945,2]
[373270015,1752925919710,-480.0,0.00019945,2]
[373270016,1752925919721,-733.01,0.00019945,2]
[373270017,1752925919730,-570.78,0.00019945,2]
[373270018,1752925919739,-853.43,0.00019945,2]
[373270019,1752925919749,-1074.29,0.00019945,2]
[373270020,1752925919758,-769.55,0.00019945,2]
[373270021,1752925919768,-480.0,0.00019945,2]
[373270022,1752925919777,-1297.2,0.00019945,2]
[373270023,1752925919787,-480.0,0.00019945,2]
[373270024,1752925919797,-480.0,0.00019945,2]
[373270025,1752925919811,-1019.51,0.00019945,2]
[373270026,1752925919821,-309.88104293,0.00019945,2]
[373270027,1752925919830,-642.8,0.00019945,2]
[373270028,1752925919841,-480.0,0.00019945,2]
[373270029,1752925919850,-480.0,0.00019945,2]
[373270030,1752925919860,-548.31,0.00019945,2]
[373270031,1752925919869,-480.0,0.00019945,2]
[373270032,1752925919879,-1847.27,0.00019945,2]
[373270033,1752925919888,-480.0,0.00019945,2]
[373270034,1752925919898,-480.0,0.00019945,2]
[373270035,1752925919908,-927.42,0.00019945,2]
[373270036,1752925919918,-4709.51,0.00019945,2]
[373270037,1752925919928,-480.0,0.00019945,2]
[373270038,1752925919939,-913.62,0.00019945,2]
[373270039,1752925919949,-480.0,0.00019945,2]
[373270040,1752925919958,-480.0,0.00019945,2]
[373270041,1752925919968,-506.89,0.00019945,2]
[373270042,1752925919977,-859.02,0.00019945,2]
[373270043,1752925919988,-781.8,0.00019945,2]
[373270044,1752925919997,-1631.07,0.00019945,2]
[373270045,1752925920008,-644.67,0.00019945,2]
[373270046,1752925920018,-480.0,0.00019945,2]
[373270047,1752925920028,-596.88,0.00019945,2]
[373270048,1752925920037,-555.41,0.00019945,2]
[373270049,1752925920048,-480.0,0.00019945,2]
[373270050,1752925920058,-480.0,0.00019945,2]
[373270051,1752925920068,-480.0,0.00019945,2]
[373270052,1752925920077,-553.68,0.00019945,2]
[373270053,1752925920087,-480.0,0.00019945,2]
[373270054,1752925920097,-480.0,0.00019945,2]
[373270055,1752925920107,-3337.6,0.00019945,2]
[373270056,1752925920118,-520.06,0.00019945,2]
[373270057,1752925920127,-1000.0,0.00019945,2]
[373270058,1752925920136,-480.0,0.00019945,2]
[373270059,1752925920146,-874.98,0.00019945,2]
[373270060,1752925920156,-480.0,0.00019945,2]
[373270061,1752925920167,-480.0,0.00019945,2]
[373270062,1752925920177,-480.0,0.00019945,2]
[373270063,1752925920187,-480.0,0.00019945,2]
[373270064,1752925920197,-480.0,0.00019945,2]
[373270065,1752925920207,-480.0,0.00019945,2]
[373270066,1752925920218,-1018.91,0.00019945,2]
[373270067,1752925920228,-480.0,0.00019945,2]
[373270068,1752925920241,-575.14,0.00019945,2]
[373270069,1752925920250,-1603.56,0.00019945,2]
[373270070,1752925920260,-480.0,0.00019945,2]
[373270071,1752925920270,-950.21,0.00019945,2]
[373270072,1752925920280,-716.19,0.00019945,2]
[373270073,1752925920289,-480.0,0.00019945,2]
[373270074,1752925920299,-480.0,0.00019945,2]
[373270075,1752925920309,-480.0,0.00019945,2]
[373270076,1752925920319,-480.0,0.00019945,2]
[373270077,1752925920330,-785.71,0.00019945,2]
[373270078,1752925920339,-653.01,0.00019945,2]
[373270079,1752925920348,-480.0,0.00019945,2]
[373270080,1752925920358,-480.0,0.00019945,2]
[373270081,1752925920368,-480.0,0.00019945,2]
[373270082,1752925920379,-802.07,0.00019945,2]
[373270083,1752925920388,-1379.0,0.00019945,2]
[373270084,1752925920398,-616.21,0.00019945,2]
[373270085,1752925920408,-480.0,0.00019945,2]
[373270086,1752925920418,-480.0,0.00019945,2]
[373270087,1752925920428,-480.0,0.00019945,2]
[373270088,1752925920437,-480.0,0.00019945,2]
[373270089,1752925920447,-622.48,0.00019945,2]
[373270090,1752925920456,-480.0,0.00019945,2]
[373270091,1752925920466,-14833.83,0.00019945,2]
[373270092,1752925920475,-480.0,0.00019945,2]
[373270093,1752925920486,-480.0,0.00019945,2]
[373270094,1752925920495,-567.92,0.00019945,2]
[373270095,1752925920504,-1616.98269,0.0001999,2]
[373270096,1752925920513,-1639.68,0.00019998,2]
[373270097,1752925920523,-1721.04,0.00019998,2]
[373270098,1752925920532,-661.12,0.00019999,2]
[373270099,1752925920541,-617.61971612,0.00019999,2]
[373270100,1752925920550,-311.41562446,0.00019999,2]
[373270101,1752925920560,-500.0,0.00019999,2]
[373270102,1752925920569,-194.92274697,0.00019999,2]
[373270103,1752925920578,-500.0,0.00019999,2]
[373270104,1752925920588,-554.23945435,0.00019999,2]
[373270105,1752925920598,-500.0,0.00019999,2]
[373270106,1752925920607,-500.0,0.0002,2]
[373270107,1752925920619,-150.0,0.0002,2]
[373270108,1752925920629,-454.0,0.0002,2]
[373270109,1752925920638,-150.0,0.0002,2]
[373270110,1752925920647,-165.47772205,0.0002,2]
[373270111,1752925920657,-1453.0,0.0002,2]
[373270112,1752925920666,-255.68981412,0.0002,2]
[373270113,1752925920675,-150.0,0.0002,2]
[373270114,1752925920685,-250.0,0.0002,2]
[373270115,1752925920694,-251.87989716,0.0002,2]
[373270116,1752925920703,-500.0,0.0002,2]
[373270117,1752925920713,-592.0,0.0002,2]
[373270118,1752925920724,-55873.5272849,0.0002,12]
[373270119,1752925920733,-16909.21015968,0.0002,2]
[373270120,1752925920742,-209.8,0.0002,2]
[373270121,1752925920751,-151.0,0.0002,2]
[373270122,1752925920760,-151.0,0.0002,2]
[373270123,1752925920769,-151.0,0.0002,2]
[373270124,1752925920779,-4000.0,0.0002,4]
[373270125,1752925920788,-12500.0,0.00020012,2]
[373270126,1752925920798,-155.999097,0.00020012,2]
[373270127,1752925920808,-151.0,0.00020012,2]
[373270128,1752925920817,-151.0,0.00020012,2]
[373270129,1752925920827,-1000.0,0.0002004,2]
[373270130,1752925920836,-312.78347059,0.00020041,2]
[373270131,1752925920845,-285.0,0.0002005,2]
[373270132,1752925920855,-2456.39,0.00020053,2]
[373270133,1752925920864,-661.12,0.00020053,2]
[373270134,1752925920874,-661.12,0.00020053,2]
[373270135,1752925920883,-661.12,0.00020053,2]
[373270136,1752925920893,-661.12,0.00020053,2]
[373270137,1752925920903,-661.33655755,0.00020053,2]
[373270138,1752925920912,-480.0,0.00020054,2]
[373270139,1752925920922,-480.0,0.00020054,2]
[373270140,1752925920931,-480.0,0.00020054,2]
[373270141,1752925920939,-480.0,0.00020054,2]
[373270142,1752925920949,-480.0,0.00020054,2]
[373270143,1752925920958,-480.0,0.00020054,2]
[373270144,1752925920968,-384.71995462,0.00020054,2]
[373270145,1752925920977,-280.0,0.00020054,2]
[373270146,1752925920986,-194.28,0.00020054,2]
[373270147,1752925920996,-280.0,0.00020054,2]
[373270148,1752925921005,-300.0,0.00020054,2]
[373270149,1752925921014,-280.0,0.00020054,2]
[373270150,1752925921023,-480.0,0.00020054,2]
[373270151,1752925921032,-282.66,0.00020054,2]
[373270152,1752925921041,-480.0,0.00020054,2]
[373270153,1752925921050,-480.0,0.00020054,2]
[373270154,1752925921059,-492.09173886,0.00020054,2]
[373270155,1752925921070,-480.0,0.00020054,2]
[373270156,1752925921079,-480.0,0.00020054,2]
[373270157,1752925921088,-480.0,0.00020054,2]
[373270158,1752925921097,-480.0,0.00020054,2]
[373270159,1752925921107,-480.0,0.00020054,2]
[373270160,1752925921115,-568.5,0.00020054,2]
[373270161,1752925921124,-480.0,0.00020054,2]
[373270162,1752925921134,-401.68,0.00020054,2]
[373270163,1752925921143,-480.0,0.00020054,2]
[373270164,1752925921153,-480.0,0.00020054,2]
[373270165,1752925921162,-480.0,0.00020054,2]
[373270166,1752925921171,-480.0,0.00020054,2]
[373270167,1752925921179,-480.0,0.00020054,2]
[373270168,1752925921189,-480.0,0.00020054,2]
[373270169,1752925921198,-357.84,0.00020054,2]
[373270170,1752925921207,-480.0,0.00020054,2]
[373270171,1752925921216,-480.0,0.00020054,2]
[373270172,1752925921226,-280.0,0.00020054,2]
[373270173,1752925921237,-291.53309085,0.00020054,2]
[373270174,1752925921246,-480.0,0.00020054,2]
[373270175,1752925921255,-480.0,0.00020054,2]
[373270176,1752925921265,-480.0,0.00020054,2]
[373270177,1752925921274,-480.0,0.00020054,2]
[373270178,1752925921284,-480.0,0.00020054,2]
[373270179,1752925921293,-359.89391906,0.00020054,2]
[373270180,1752925921303,-480.0,0.00020054,2]
[373270181,1752925921313,-480.0,0.00020054,2]
[373270182,1752925921323,-480.0,0.00020054,2]
[373270183,1752925921332,-480.0,0.00020054,2]
[373270184,1752925921341,-403.36947052,0.00020054,2]
[373270185,1752925921351,-480.0,0.00020054,2]
[373270186,1752925921359,-480.0,0.00020054,2]
[373270187,1752925921368,-480.0,0.00020054,2]
[373270188,1752925921377,-480.0,0.00020054,2]
[373270189,1752925921387,-480.0,0.00020054,2]
[373270190,1752925921397,-480.0,0.00020054,2]
[373270191,1752925921409,-480.0,0.00020054,2]
[373270192,1752925921419,-480.0,0.00020054,2]
[373270193,1752925921428,-480.0,0.00020054,2]
[373270194,1752925921437,-480.0,0.00020054,2]
[373270195,1752925921446,-480.0,0.00020054,2]
[373270196,1752925921455,-480.0,0.00020054,2]
[373270197,1752925921464,-480.0,0.00020054,2]
[373270198,1752925921474,-182.5780953,0.00020054,2]
[373270199,1752925921484,-480.0,0.00020054,2]
[373270200,1752925921493,-480.0,0.00020054,2]
[373270201,1752925921502,-480.0,0.00020054,2]
[373270202,1752925921512,-480.0,0.00020054,2]
[373270203,1752925921521,-480.0,0.00020054,2]
[373270204,1752925921530,-480.0,0.00020054,2]
[373270205,1752925921539,-480.0,0.00020054,2]
[373270206,1752925921549,-480.0,0.00020054,2]
[373270207,1752925921559,-480.0,0.00020054,2]
[373270208,1752925921568,-413.64425886,0.00020054,2]
[373270209,1752925921578,-480.0,0.00020054,2]
[373270210,1752925921587,-301.08973363,0.00020054,2]
[373270211,1752925921597,-480.0,0.00020054,2]
[373270212,1752925921606,-480.0,0.00020054,2]
[373270213,1752925921616,-480.0,0.00020054,2]
[373270214,1752925921626,-623.6,0.00020054,2]
[373270215,1752925921635,-480.0,0.00020054,2]
[373270216,1752925921645,-480.0,0.00020054,2]
[373270217,1752925921654,-480.0,0.00020054,2]
[373270218,1752925921663,-340.64589814,0.00020054,2]
[373270219,1752925921672,-340.0,0.00020054,2]
[373270220,1752925921682,-480.0,0.00020054,2]
[373270221,1752925921691,-480.0,0.00020054,2]
[373270222,1752925921701,-480.0,0.00020054,2]
[373270223,1752925921710,-480.0,0.00020054,2]
[373270224,1752925921719,-480.0,0.00020054,2]
[373270225,1752925921729,-480.0,0.00020054,2]
[373270226,1752925921738,-480.0,0.00020054,2]
[373270227,1752925921748,-480.0,0.00020054,2]
[373270228,1752925921757,-480.0,0.00020054,2]
[373270229,1752925921766,-480.0,0.00020054,2]
[373270230,1752925921939,-480.0,0.00020054,2]
[373270231,1752925921969,-480.0,0.00020054,2]
[373270232,1752925921979,-480.0,0.00020054,2]
[373270233,1752925921989,-480.0,0.00020054,2]
[373270234,1752925921999,-480.0,0.00020054,2]
[373270235,1752925922009,-480.0,0.00020054,2]
[373270236,1752925922018,-480.0,0.00020054,2]
[373270237,1752925922027,-159.895103,0.00020054,2]
[373270238,1752925922036,-204.7637706,0.00020054,2]
[373270239,1752925922046,-480.0,0.00020054,2]
[373270240,1752925922055,-480.0,0.00020054,2]
[373270241,1752925922066,-480.0,0.00020054,2]
[373270242,1752925922076,-151.0,0.00020054,2]
[373270243,1752925922086,-480.0,0.00020054,2]
[373270244,1752925922096,-480.0,0.00020054,2]
[373270245,1752925922105,-311.82138233,0.00020054,2]
[373270246,1752925922115,-480.0,0.00020054,2]
[373270247,1752925922124,-480.0,0.00020054,2]
[373270248,1752925922134,-480.0,0.00020054,2]
[373270249,1752925922143,-407.1,0.00020054,2]
[373270250,1752925922152,-480.0,0.00020054,2]
[373270251,1752925922162,-480.0,0.00020054,2]
[373270252,1752925922171,-480.0,0.00020054,2]
[373270253,1752925922181,-480.0,0.00020054,2]
[373270254,1752925922190,-480.0,0.00020054,2]
[373270255,1752925922199,-480.0,0.00020054,2]
[373270256,1752925922208,-480.0,0.00020054,2]
[373270257,1752925922217,-480.0,0.00020054,2]
[373270258,1752925922227,-480.0,0.00020054,2]
[373270259,1752925922241,-480.0,0.00020054,2]
[373270260,1752925922250,-480.0,0.00020054,2]
[373270261,1752925922259,-151.0,0.00020054,2]
[373270262,1752925922268,-480.0,0.00020054,2]
[373270263,1752925922278,-480.0,0.00020054,2]
[373270264,1752925922289,-480.0,0.00020054,2]
[373270265,1752925922298,-480.0,0.00020054,2]
[373270266,1752925922308,-551.9,0.00020054,2]
[373270267,1752925922318,-480.0,0.00020054,2]
[373270268,1752925922327,-480.0,0.00020054,2]
[373270269,1752925922338,-480.0,0.00020054,2]
[373270270,1752925922347,-480.0,0.00020054,2]
[373270271,1752925922357,-151.0,0.00020054,2]
[373270272,1752925922366,-480.0,0.00020054,2]
[373270273,1752925922376,-244.94,0.00020054,2]
[373270274,1752925922385,-480.0,0.00020054,2]
[373270275,1752925922404,-480.0,0.00020054,2]
[373270276,1752925922413,-185.192096,0.00020054,2]
[373270277,1752925922423,-318.29014088,0.00020054,2]
[373270278,1752925922432,-480.0,0.00020054,2]
[373270279,1752925922443,-480.0,0.00020054,2]
[373270280,1752925922452,-480.0,0.00020054,2]
[373270281,1752925922462,-480.0,0.00020054,2]
[373270282,1752925922473,-480.0,0.00020054,2]
[373270283,1752925922484,-480.0,0.00020054,2]
[373270284,1752925922493,-480.0,0.00020054,2]
[373270285,1752925922503,-662.26,0.00020054,2]
[373270286,1752925922513,-480.0,0.00020054,2]
[373270287,1752925922523,-480.0,0.00020054,2]
[373270288,1752925922532,-480.0,0.00020054,2]
[373270289,1752925922542,-569.2,0.00020054,2]
[373270290,1752925922551,-480.0,0.00020054,2]
[373270291,1752925922560,-480.0,0.00020054,2]
[373270292,1752925922570,-322.33679225,0.00020054,2]
[373270293,1752925922579,-480.0,0.00020054,2]
[373270294,1752925922589,-480.0,0.00020054,2]
[373270295,1752925922599,-461.320615,0.00020054,2]